Cogmind - Beta 16 @@@ ROGUE MODE // 2025.12.27 @ 23:19:27 Player: Bity Result: Destroyed by N9-PE3(R) with Subdweller Machine Gun Performance ------------- Evolutions (0) 0 Regions Visited (2) 400 Robots Destroyed (18) 90 Value Destroyed (551) 551 Prototype IDs (12) 240 Alien Tech Used (0) 0 Bonus (0) 0 TOTAL SCORE: 1281 Bonus ------- None Cogmind --------- Core Integrity 0/250 Matter 283/300 Energy 250/250 System Corruption 0% Temperature Cool (0) Movement Walking (130) Location -10/Subcaves Parts ------- > --- POWER (1) -------- Ion Engine > --- PROPULSION (2) --- Cargo Legs > --- UTILITY (2+2) ---- Disposable Heat Sink Small Storage Unit > --- WEAPON (2) ------- Slug Cannon Ripper > --- INVENTORY (8) ---- Subdweller Power Source Subdweller Power Source Subdweller Monowheel Subdweller Monowheel Subdweller Laser Subdweller Laser Powered Cannon Peak State ------------ > --- POWER ------------ Subdweller Power Source > --- PROPULSION ------- Cargo Legs > --- UTILITY ---------- Disposable Heat Sink Small Storage Unit > --- WEAPON ----------- Slug Cannon Ripper > --- INVENTORY -------- Ion Engine Ion Engine Light Treads Spiked Treads Subdweller Monowheel Subdweller Laser Assault Rifle [Rating: 30] Favorites ----------- Power Light Nuclear Core Engine Ion Engine Power Core Light Nuclear Core Propulsion Compact Wheel Treads Spiked Treads Leg Cargo Legs Wheel Compact Wheel Utility Small Storage Unit Device Disposable Heat Sink Storage Small Storage Unit Processor Visual Processing Unit Weapon Ripper Energy Gun Medium Laser Ballistic Gun Assault Rifle Ballistic Cannon Slug Cannon Special Weapon Flamer Slashing Weapon Ripper Build | -11 -10 -10 ------- Run | Yrd Mat Sub Slots Evolved . | . . . Power . | . . . Propulsion . | . . . Utility . | . . . Weapon . | . . . Parts Attached 26 | 3 2 21 Power 4 | . 1 3 Engine 3 | . . 3 Core 1 | . 1 . Reactor . | . . . Propulsion 12 | 2 . 10 Treads 2 | . . 2 Leg 1 | . . 1 Wheel 9 | 2 . 7 Hover . | . . . Flight . | . . . Utility 5 | 1 1 3 Device 2 | 1 . 1 Storage 2 | . . 2 Processor 1 | . 1 . Hackware . | . . . Protection . | . . . Artifact . | . . . Weapon 5 | . . 5 Energy Gun 1 | . . 1 Energy Cannon . | . . . Ballistic Gun . | . . . Ballistic Cannon 1 | . . 1 Launcher . | . . . Special Weapon 2 | . . 2 Impact Weapon . | . . . Slashing Weapon 1 | . . 1 Piercing Weapon . | . . . Special Melee Weapon . | . . . Unidentified Prototypes 1 | . . 1 Parts Lost 8 | . 1 7 Power 1 | . . 1 Propulsion 3 | . . 3 Utility 2 | . 1 1 Weapon 2 | . . 2 Highest Loss Streak 2 | . 1 2 To Critical Strikes . | . . . Average Backups 10 | 7 7 10 Power 1 | 1 1 1 Propulsion 4 | 4 4 3 Utility . | . . 1 Weapon 3 | 1 2 3 Tool/Special . | . . . Unused Backups 16 | 5 1 10 Power 1 | . . 1 Propulsion 7 | 5 1 1 Utility . | . . . Weapon 8 | . . 8 Tool/Special . | . . . Average Slot Usage (%) 84 | . 100 81 Engine 6 | . 5 6 Core 7 | . 8 6 Leg 2 | . . 2 Wheel 21 | . 28 20 Device 3 | . 9 1 Storage 13 | . 14 13 Processor 2 | . 4 2 Energy Gun 4 | . . 4 Ballistic Gun 6 | . 28 2 Ballistic Cannon 4 | . . 5 Special Weapon 1 | . . 2 Slashing Weapon 10 | . . 12 Peak Build Rating 30 | 7 10 30 Average Rating 15 | 6 8 17 On Entrance 7 | 6 7 10 Avg Prop Armor Cover (%) . | . . . Naked Turns . | . . . Heaviest Build 215 | 14 14 215 Greatest Support 55 | 32 32 55 Greatest Overweight (x) 12 | . . 12 Average Overweight (x) 2 | . . 3 Largest Inventory Capacity 35 | 8 8 35 Average Capacity 20 | 8 8 23 Most Carried 18 | 8 8 18 Average Carried 11 | 7 7 11 Final Capacity 8 | 8 8 8 Final Carried 8 | 8 8 8 Class Distribution -------------------- 49% | Mutant 46% | Hauler-Mutant 3% | Scavenger-Mutant Dominant Class ---------------- Mutant | -10/Materials Hauler-Mutant | -10/Subcaves Resources | -11 -10 -10 ----------- Run | Yrd Mat Sub Matter Collected 659 | 262 99 298 Remotely . | . . . Salvage Created 721 | 111 255 355 Parts 43 | 10 14 19 Haulers Intercepted . | . . . Recyclers Shooed . | . . . Parts Field Recycled . | . . . Retrieved Matter . | . . . Parts Self-Destructed 24 | . . 24 Prevented . | . . . Parts Restored . | . . . Kills | -11 -10 -10 ------- Run | Yrd Mat Sub Combat Hostiles Destroyed 13 | . 4 9 Melee 6 | . . 6 Guns 4 | . 4 . Cannons 3 | . . 3 Classes Destroyed 6 | 2 2 2 Tunneler 2 | 2 . . Recycler 2 | 1 1 . Watcher 1 | . 1 . Grunt 4 | . 4 . Artisan 1 | . . 1 Subdweller 9 | . . 9 Best Kill Streak 3 | 1 3 3 Combat Bots Only 3 | . 2 3 Max Kills in Single Turn 1 | 1 1 1 Gunslinging . | . . . Exploded . | . . . Melee 1 | . . 1 Uniques/NPCs Destroyed . | . . . Combat | -11 -10 -10 -------- Run | Yrd Mat Sub Hostile Shots Fired 75 | . 15 60 Missed 18 | . 5 13 Hits 57 | . 10 47 Projectile 57 | . 10 47 AOE 5 | . . 5 Critical Strikes 2 | . . 2 Damage Taken 1453 | . 116 1337 Core 257 | . 59 198 Absorbed by Shields . | . . . Core Remaining (%) 100 | 100 . . Volleys Fired 45 | 8 21 16 Largest 2 | 2 2 1 Hottest 100 | 40 40 100 Shots Fired 74 | 16 42 16 Gun 58 | 16 42 . Cannon 15 | . . 15 Launcher . | . . . Special 1 | . . 1 Kinetic 73 | 16 42 15 Thermal 1 | . . 1 Explosive . | . . . Electromagnetic . | . . . Robot Hit Streak 9 | 5 9 4 Robot Miss Streak 4 | 1 2 4 Penetration Max . | . . . Secondary Targets . | . . . Shots Hit Robots 71 | 10 29 32 Core Hits 26 | 5 12 9 Critical Kills 1 | . . 1 Critical Parts Destroyed . | . . . Critical Strikes 2 | . . 2 Destroy 2 | . . 2 Melee Attacks 46 | . . 46 Impact . | . . . Slashing 46 | . . 46 Piercing . | . . . Sneak Attacks 3 | . . 3 Combat Hostiles 2 | . . 2 Follow-up Attacks . | . . . Damage Inflicted 1575 | 99 302 1174 Guns 401 | 99 302 . Cannons 232 | . . 232 Explosions . | . . . Melee 942 | . . 942 Ramming . | . . . Kinetic 633 | 99 302 232 Thermal . | . . . Explosive . | . . . Electromagnetic . | . . . Impact . | . . . Slashing 942 | . . 942 Piercing . | . . . Highest Corruption . | . . . Average Corruption . | . . . Corruption Purged . | . . . Corruption Blocked . | . . . Overload Shots . | . . . Overflow Damage 50 | . . 50 Projectiles . | . . . Explosions . | . . . Melee 50 | . . 50 Knockbacks 1 | . . 1 Impact . | . . . Kinetic 1 | . . 1 Secondary . | . . . Self-Inflicted Damage . | . . . Shots . | . . . Rammed . | . . . Targets Rammed . | . . . Kicked . | . . . Crushed . | . . . Highest Temperature 245 | . 15 245 Average Temperature 48 | . 6 132 Received Heat Transfer 553 | . 63 490 Siege Activations . | . . . Martial Activations . | . . . Shielding Activations . | . . . Robots Disrupted . | . . . Combat Hostiles . | . . . Robots Corrupted . | . . . Combat Hostiles . | . . . Parts Fried . | . . . Impact Corruptions . | . . . Robots Melted . | . . . Combat Hostiles . | . . . Parts Melted 1 | . . 1 Heat Transferred . | . . . Parts Sabotaged . | . . . Parts Stolen . | . . . Parts Stripped . | . . . Power Chain Reactions . | . . . Alert | -11 -10 -10 ------- Run | Yrd Mat Sub Maximum Alert Level . | . . . Low Security (%) 100 | 100 100 . Level 1 . | . . . Level 2 . | . . . Level 3 . | . . . Level 4 . | . . . Level 5 . | . . . High Security . | . . . Max Security . | . . . Peak Influence 50 | 5 50 . Initial . | . . . Average 10 | . 13 . Influence Increases 135 | 15 120 . Destroy 0b10 Robot/C 80 | . 80 . Destroy 0b10 Robot/NC 25 | 15 10 . Destroy Leader 12 | . 12 . Successful Hack 3 | . 3 . Lose Combat Pursuer 15 | . 15 . Influence Decreases 135 | 15 120 . Time Decay 132 | 15 117 . Lost Part 3 | . 3 . Squads Dispatched . | . . . Investigation . | . . . Extermination . | . . . Reinforcement . | . . . Assault . | . . . Garrison . | . . . Intercept . | . . . Searches Triggered . | . . . Construction Impeded . | . . . Haulers Reinforced . | . . . Active Scanning Responses . | . . . Cargo Convoy Interrupts . | . . . Stealth | -11 -10 -10 --------- Run | Yrd Mat Sub Distress Signals 1 | . 1 . Communications Jammed . | . . . Distress Signals . | . . . Times Spotted 16 | . 6 10 Peak Tracking Total 3 | . 3 3 Tactical Retreats 1 | . 1 . Traps | -11 -10 -10 ------- Run | Yrd Mat Sub Traps Triggered 2 | . . 2 Indirectly . | . . . Trap Hack Attempts . | . . . Triggered . | . . . Disarmed . | . . . Reprogrammed . | . . . Reused . | . . . Traps Extracted . | . . . Installed . | . . . Triggered . | . . . Machines | -11 -10 -10 ---------- Run | Yrd Mat Sub Machines Disabled 1 | . . 1 Max in Single Turn 1 | . . 1 Machines Repaired . | . . . Machines Dismantled . | . . . Machines Sabotaged . | . . . Overloaded Fab Kills . | . . . Hacking | -11 -10 -10 --------- Run | Yrd Mat Sub Machines Accessed 7 | . 3 4 Terminals 1 | . 1 . Fabricators . | . . . Repair Stations . | . . . Recycling Units 2 | . 2 . Scanalyzers . | . . . Garrison Access . | . . . Total Hacks 26 | . 11 15 Successful 21 | . 6 15 Failed 5 | . 5 . Catastrophic 2 | . 2 . Database Lockouts . | . . . Manual 7 | . 7 . Terminals 6 | . 6 . Fabricators . | . . . Repair Stations . | . . . Recycling Units 5 | . 5 . Scanalyzers . | . . . Garrison Access . | . . . Terminal Hacks 16 | . 1 15 Record 13 | . . 13 Open Door 1 | . . 1 Zone Layout 1 | . 1 . Proto ID Catalog 1 | . . 1 Fabricator Hacks . | . . . Repair Station Hacks . | . . . Recycling Unit Hacks 2 | . 2 . Report Inventory 1 | . 1 . Retrieve Components 1 | . 1 . Scanalyzer . | . . . Garrison Access Hacks . | . . . Unauthorized Hacks 3 | . 3 . Terminals 3 | . 3 . Track 1 | . 1 . Botnet 1 | . 1 . Operators 1 | . 1 . Fabricators . | . . . Repair Stations . | . . . Recycling Units . | . . . Scanalyzers . | . . . Garrison Access . | . . . Data Cores Recovered . | . . . Used . | . . . Hacking Detections 3 | . 3 . Full Trace Events . | . . . Feedback Events . | . . . Feedback Blocked . | . . . Robot Schematics Acquired . | . . . Robots Built . | . . . Authchips . | . . . Time . | . . . Total Robot Build Rating . | . . . Part Schematics Acquired . | . . . Parts Built . | . . . Authchips . | . . . Time . | . . . Total Part Build Rating . | . . . Part Studies Acquired . | . . . Parts Repaired . | . . . Time . | . . . Parts Recycled . | . . . Recycled Matter . | . . . Retrieved Matter . | . . . Retrieved Components 4 | . 4 . Parts Scanalyzed . | . . . Part Schematics Acquired . | . . . Parts Damaged . | . . . Bothacking | -11 -10 -10 ------------ Run | Yrd Mat Sub Used RIF Installer . | . . . Robots Hacked . | . . . Non-combat . | . . . Combat . | . . . Robot Hacks Applied . | . . . Relay Couplers Released . | . . . Fabnet Peak Effective % . | . . . Robots Rewired . | . . . Allies Hacked . | . . . Hacks Repelled . | . . . Allies | -11 -10 -10 -------- Run | Yrd Mat Sub Total Allies . | . . . Largest Group . | . . . Highest-Rated Group . | . . . Highest-Rated Ally . | . . . Total Orders . | . . . Ally Attacks . | . . . Total Damage . | . . . Kills . | . . . Allies Corrupted . | . . . Allies Melted . | . . . Intel | -11 -10 -10 ------- Run | Yrd Mat Sub Active Infowar (turns) 612 | 28 329 255 Optics 368 | . 113 255 Seismic 244 | 28 216 . Robot Analysis Total . | . . . Derelict Logs Recovered . | . . . Drone Launches . | . . . Drone Recoveries . | . . . Exploration | -11 -10 -10 ------------- Run | Yrd Mat Sub Turns Passed 2207 | 114 334 1759 Spaces Moved 1248 | 73 222 953 Core . | . . . Treads 6 | . . 6 Legs 285 | 32 . 253 Wheels 957 | 41 222 694 Hover . | . . . Flight . | . . . Fastest Speed 80 | 100 100 80 Average Speed 143 | 108 100 155 Slowest Speed 280 | 120 100 280 Overloaded Moves . | . . . Propulsion Burnouts . | . . . Robots Hopped . | . . . Potential Cave-ins . | . . . Cave-ins Triggered . | . . . Exploration Rate (%) 28 | 4 27 55 Regions Visited 2 Branch Regions 1 Pre-discovered Areas 2 | . . 2 Known Exits Taken . | . . . Unknown Exits Taken 2 | 1 1 . Scrap Searched . | . . . Spaces Dug . | . . . Terrain Destroyed 3 | . . 3 Melee . | . . . Projectile 3 | . . 3 AOE . | . . . Terrain Rammed . | . . . Walls Destroyed . | . . . Machines Disabled . | . . . Actions | -11 -10 -10 --------- Run | Yrd Mat Sub Total 1531 | 95 297 1139 Wait 107 | 2 48 57 Move 1246 | 72 221 953 Hop . | . . . Pick Up 34 | 6 3 25 Fast Attach 5 | 1 . 4 Attach 7 | . 1 6 Detach 1 | . . 1 Swap 18 | 2 1 15 Drop 22 | 4 2 16 Fire 45 | 8 21 16 Melee 46 | . . 46 Ram . | . . . Kick . | . . . Crush . | . . . Escape Stasis . | . . . Rewire . | . . . Trap . | . . . Miscellaneous . | . . . Route ------- -11/Scrapyard -10/Materials -10/Subcaves (discovered 1 exit: [*Mat]) History --------- Turn | Location | Event 1 | -11/Scrapyard | Discovered new exit (range 3) 115 | -11/Scrapyard | Entered Materials 306 | -10/Materials | Build established: Mutant 444 | -10/Materials | Discovered new exit (range 5) 449 | -10/Materials | Entered Subcaves 450 | -10/Subcaves | Approached by a straggling Scientist 452 | -10/Subcaves | A swath of the cavern ceiling suddenly collapsed 505 | -10/Subcaves | Shifting Twisted Machinery released Ripper 506 | -10/Subcaves | Shifting Twisted Machinery released Sub. Monowheel 1006 | -10/Subcaves | Build established: Hauler-Mutant 1012 | -10/Subcaves | Shifting Twisted Machinery released Slug Cannon 1015 | -10/Subcaves | Shifting Twisted Machinery released Shrapnel Trap 1210 | -10/Subcaves | A swath of the cavern ceiling suddenly collapsed 1510 | -10/Subcaves | Discovered new exit (range 10) 1722 | -10/Subcaves | A Subdweller sparked back to life 1722 | -10/Subcaves | A Subdweller sparked back to life 1722 | -10/Subcaves | A Subdweller sparked back to life 1733 | -10/Subcaves | Core integrity fell below 50% 1742 | -10/Subcaves | Core integrity fell below 20% 1797 | -10/Subcaves | Found Prototype Leg 1797 | -10/Subcaves | Identified Cargo Legs 1798 | -10/Subcaves | Attached Cargo Legs, gained temporary slots: Utility x2 2002 | -10/Subcaves | Visited Clippyterm 2006 | -10/Subcaves | Learned location of Deep Caves (-7) 2006 | -10/Subcaves | Learned location of Extension (-4) 2015 | -10/Subcaves | Build established: Mutant 2060 | -10/Subcaves | Visited 4L-MR0's lab 2074 | -10/Subcaves | Found Powered Cannon 2208 | -10/Subcaves | Destroyed by N9-PE3(R) with Subdweller Machine Gun Last Messages --------------- more efficient transfer while firing. >>Record "Infernogeddon Engine" There was a rumor. A rumor but no details. I can't build something based on a vague rumor about ending the world in a hellish blaze at the flip of a switch. Also why would anyone want that. >>Record "Uberlauncher" I hear [REDACTED] exploded during the installation process. I did warn them to fully install it before trying to fire, and something tells me that's where things went wrong. Still I'm glad they didn't listen, that way I'm not culpable for whatever they would've done with it. If we're lucky even some of the others got blasted, too. 02066_ Testing Chamber breached. 02073_ Dropped Assault Rifle. 02074_ Dropped Spk. Treads. 02074_ Acquired Powered Cannon. Map ----- +----------------------------------------------------+ | | | | | | | | | | | | | ???????????????????????????????????????????????? | | ??????#####????????????????????????????????????? | | #######"" ##???????????????????????????????????? | | = ""##" " #???????????????????????????????????? | | # " "#???????????????????????????????????? | | "X" +" " #???????????????????????????????????? | | """""#" """#???????????????????????????????????? | | #######" ""#???????????????????????????????????? | | ?????##" ""#???????????????????????????????????? | | ######" "#???????????????????????????????????? | | # # ""##???????????????????????????????????? | | ## #????????????????????????????????????? | | # ## ##????????????????????????????????????? | | # "#######???????????????????????????????????? | | " ### ##??###?????????????????????????????? | | #??# ###??###??????????????????????? | | ### #### #### ##?????????????????????? | | # # " ##????????????????????? | | ### """ "#????????????????????? | | ##?###### """@#????????????????????? | | #???????## # ## "R## ##??????????????? | | ?##?????# ### ###"" " #??????????????? | | ## ???### ## #?#"" """" #?????????????? | | #?## ##?#####"## ??????????????? | | ## ##???????##?? #??????????????? | | ##????????????? #??????????????? | | ### ## #???????????????#??????????????? | | ??# ### ##??????????????????????????????? | | ??# #?# ##???????????????????????????????? | | ??# ##?# ##????????????????????????????????? | | ??####??######?????????????????????????????????? | | ???????????????????????????????????????????????? | | ???????????????????????????????????????????????? | | ???????????????????????????????????????????????? | | ???????????????????????????????????????????????? | | ???????????????????????????????????????????????? | | ???????????????????????????????????????????????? | | ???????????????????????????????????????????????? | | ???????????????????????????????????????????????? | | ???????????????????????????????????????????????? | | ???????????????????????????????????????????????? | | ???????????????????????????????????????????????? | | ???????????????????????????????????????????????? | | ???????????????????????????????????????????????? | +----------------------------------------------------+ Best States ------------- Heat Dissipation 25 Coolant Potential 50 Energy Generation 15 Energy Capacity 250 Matter Stores 300 Matter Capacity 300 Sight Range 18 Terrain Scan Density 10 Evasion (%) 55 Recoil Reduction 2 Item Schematics ----------------- None Robot Schematics ------------------ None Fabricated ------------ Nothing Repaired ---------- Nothing Studied --------- None Alien Tech Used ----------------- None Achievements -------------- None Challenges ------------ None Game ------ Seed ElectrostormTargetingWarhead Manual? 0 Play Time 00:17:39 Cumulative 39.0 hours Start 2025.12.27 @ 23:02:36 End 2025.12.27 @ 23:19:27 Sessions 1 Manual Loads 0 Difficulty Rogue Special Mode None Game No. 49 Rogue 49 Adventurer 0 Explorer 0 Win Type - Total 1 Types 1/0/0/0/0/0/0/0/0/0 Lore% 32 Gallery% 41 Achievement% 32 Wizard Run 0 Options --------- Layout 2 ASCII 0 Keyboard 1 Movement Numpad Keybinds 0 Fullscreen 1 Font 24/Smallcaps Map View 50x44 Zoom Use 0% Tactical HUD 1 Map Filters NONE Filters NONE Steam 1 RUN: 3f8ac625-9ed1-4ec7-a678-d11e2ded458a